fUSD/lending_fUSD_20240804
["ID","MTS","AMOUNT","RATE_DAILY","PERIOD"]
[334096054,1722766239729,-500.0,0.00024055,2]
[334096056,1722766239739,-500.0,0.00024055,2]
[334096058,1722766239750,-500.0,0.00024055,2]
[334096060,1722766239761,-167.0,0.00024061,2]
[334096063,1722766239772,-500.0,0.00024071,2]
[334096065,1722766239782,-500.0,0.0002408,2]
[334096067,1722766239791,-466.66666667,0.00024082,30]
[334096069,1722766239800,-500.0,0.00024089,2]
[334096071,1722766239810,-500.0,0.00024098,2]
[334096073,1722766239820,-622.0,0.000241,2]
[334096075,1722766239830,-500.0,0.00024106,2]
[334096077,1722766239840,-9132.79585173,0.00024114,3]
[334096079,1722766239850,-500.0,0.00024115,2]
[334096081,1722766239866,-652.98954069,0.00024124,2]
[334096083,1722766239876,-535.57210001,0.00024124,2]
[334096085,1722766239885,-184.74294384,0.00024124,2]
[334096087,1722766239895,-649.22269154,0.00024124,2]
[334096089,1722766239904,-367.59994124,0.00024124,2]
[334096091,1722766239914,-206.52645719,0.00024124,2]
[334096093,1722766239923,-547.40182525,0.00024124,2]
[334096095,1722766239933,-155.59290137,0.00024124,3]
[334096097,1722766239942,-155.0,0.00024124,2]
[334096099,1722766239951,-500.0,0.00024124,2]
[334096101,1722766239961,-34230.85,0.00024153,6]
[334096103,1722766239970,-128756.34,0.00024153,6]
[334096105,1722766239980,-25542.58,0.00024153,6]
[334096107,1722766239989,-15699.48,0.00024153,6]
[334096109,1722766239999,-400.0,0.00024155,2]
[334096111,1722766240008,-466.66666667,0.00024164,30]
[334096112,1722766240018,-332.43230961,0.00024169,2]
[334096114,1722766240027,-500.0,0.00024235,7]
[334096116,1722766240037,-500.0,0.00024235,7]
[334096118,1722766240046,-813.0,0.0002425,2]
[334096120,1722766240056,-466.66666667,0.00024274,30]
[334096122,1722766240065,-9132.79585173,0.00024289,3]
[334096124,1722766240075,-466.66666667,0.00024356,30]
[334096126,1722766240084,-332.43230961,0.00024363,2]
[334096128,1722766240094,-1500.0,0.00024418,2]
[334096130,1722766240104,-157.78,0.00024433,2]
[334096131,1722766240114,-9132.79585173,0.00024443,3]
[334096132,1722766240123,-9132.79585173,0.00024453,3]
[334096133,1722766240133,-7000.0,0.00024463,7]
[334096134,1722766240142,-466.66666667,0.00024466,30]
[334096135,1722766240152,-150.41,0.00024496,2]
[334096136,1722766240162,-813.0,0.000245,2]
[334096137,1722766240171,-1000.0,0.000245,2]
[334096138,1722766240181,-500.0,0.00024508,7]
[334096139,1722766240190,-500.0,0.00024508,7]
[334096140,1722766240200,-500.0,0.00024526,2]
[334096141,1722766240209,-358.97363799,0.0002453,2]
[334096142,1722766240219,-500.0,0.00024535,2]
[334096143,1722766240228,-2588.8909,0.00024537,2]
[334096144,1722766240238,-358.97363797,0.00024544,2]
[334096145,1722766240248,-500.0,0.00024544,2]
[334096146,1722766240257,-500.0,0.00024553,2]
[334096147,1722766240266,-9132.79585173,0.00024555,4]
[334096148,1722766240275,-500.0,0.00024556,3]
[334096149,1722766240285,-332.43230961,0.00024557,2]
[334096150,1722766240295,-358.97363797,0.00024557,2]
[334096151,1722766240304,-818.55418554,0.00024557,2]
[334096152,1722766240313,-500.0,0.00024561,2]
[334096153,1722766240323,-500.0,0.00024561,2]
[334096154,1722766240332,-500.0,0.0002457,2]
[334096155,1722766240342,-500.0,0.0002457,2]
[334096156,1722766240355,-17.1532403,0.00024575,30]
[334096157,1722766240365,-466.66666667,0.00024575,30]
[334096158,1722766240374,-500.0,0.00024579,2]
[334096159,1722766240383,-500.0,0.00024579,2]
[334096160,1722766240393,-9132.79585173,0.00024595,4]
[334096161,1722766240403,-378.21092486,0.000246,2]
[334096162,1722766240413,-754.0,0.000246,12]
[334096163,1722766240423,-494.0,0.000246,8]
[334096164,1722766240433,-871.0,0.000246,2]
[334096165,1722766240441,-18265.5917035,0.00024617,4]
[334096166,1722766240450,-153.7698823,0.00024624,2]
[334096168,1722766240460,-18265.5917035,0.00024626,4]
[334096170,1722766240469,-29877.3201882,0.00024626,3]
[334096172,1722766240479,-73062.3668138,0.00024627,4]
[334096174,1722766240488,-74693.3004706,0.00024627,3]
[334096176,1722766240497,-500.0,0.0002463,2]
[334096178,1722766240506,-18265.5917035,0.00024636,4]
[334096180,1722766240516,-14938.6600941,0.00024636,3]
[334096181,1722766240525,-18265.5917035,0.00024637,4]
[334096183,1722766240534,-14938.6600941,0.00024637,3]
[334096185,1722766240544,-29877.3201882,0.00024637,3]
[334096187,1722766240554,-500.0,0.00024639,2]
[334096189,1722766240564,-14938.6600941,0.00024646,3]
[334096190,1722766240574,-89631.9605647,0.00024647,3]
[334096192,1722766240584,-119509.280753,0.00024647,3]
[334096193,1722766240594,-500.0,0.00024648,2]
[334096194,1722766240607,-500.0,0.00024653,2]
[334096195,1722766240616,-461.3096469,0.00024654,2]
[334096196,1722766240625,-10000.0,0.00024656,9]
[334096197,1722766240635,-10000.0,0.00024656,9]
[334096198,1722766240644,-4576.24213973,0.00024656,9]
[334096199,1722766240654,-3099.43712599,0.00024657,2]
[334096200,1722766240665,-190523.40357054,0.00024657,11]
[334096201,1722766240676,-500.0,0.00024657,2]
[334096202,1722766240686,-662.63,0.00024657,30]
[334096203,1722766240695,-1250.0,0.00024657,30]
[334096204,1722766240704,-500.0,0.00024657,9]
[334096205,1722766240714,-500.45748657,0.00024657,9]
[334096206,1722766240724,-500.0,0.00024657,9]
[334096207,1722766240733,-500.0,0.00024657,9]
[334096208,1722766240742,-500.0,0.00024657,9]
[334096209,1722766240754,-501.0532716,0.00024657,9]
[334096210,1722766240763,-500.0,0.00024657,9]
[334096211,1722766240772,-500.0,0.00024657,9]
[334096212,1722766240781,-501.4234519,0.00024657,9]
[334096213,1722766240791,-500.0,0.00024657,9]
[334096214,1722766240800,-501.17583745,0.00024657,9]
[334096215,1722766240809,-500.0,0.00024657,9]
[334096216,1722766240818,-500.55130903,0.00024657,9]
[334096217,1722766240827,-500.22465121,0.00024657,9]
[334096218,1722766240837,-500.0,0.00024657,9]
[334096219,1722766240846,-500.0,0.00024657,9]
[334096220,1722766240857,-500.0,0.00024657,9]
[334096221,1722766240866,-500.0,0.00024657,9]
[334096222,1722766240875,-501.72217429,0.00024657,9]
[334096223,1722766240885,-233.50279688,0.00024657,9]
[334096224,1722766240894,-500.0,0.00024657,9]
[334096225,1722766240903,-500.55483684,0.00024657,9]
[334096226,1722766240913,-500.0,0.00024657,9]
[334096227,1722766240922,-500.0,0.00024657,9]
[334096228,1722766240931,-500.0,0.00024657,9]
[334096229,1722766240940,-500.0,0.00024657,9]
[334096230,1722766240949,-500.0,0.00024657,9]
[334096231,1722766240959,-161.02318836,0.00024657,9]
[334096232,1722766240969,-500.0,0.00024657,9]
[334096233,1722766240979,-500.0,0.00024657,9]
[334096234,1722766240989,-500.0,0.00024657,9]
[334096235,1722766240999,-251.28913797,0.00024657,9]
[334096236,1722766241010,-500.0,0.00024657,9]
[334096237,1722766241019,-500.82474575,0.00024657,9]
[334096238,1722766241029,-500.0,0.00024657,9]
[334096239,1722766241038,-500.0,0.00024657,9]
[334096240,1722766241048,-190.32536997,0.00024657,9]
[334096241,1722766241057,-500.0,0.00024657,9]
[334096242,1722766241068,-542.1270546,0.00024657,9]
[334096243,1722766241077,-500.0,0.00024657,9]
[334096244,1722766241086,-500.0,0.00024657,9]
[334096245,1722766241096,-568.41995584,0.00024657,9]
[334096246,1722766241108,-500.0,0.00024657,9]
[334096247,1722766241117,-500.0,0.00024657,9]
[334096248,1722766241127,-501.30864152,0.00024657,9]
[334096249,1722766241136,-500.0,0.00024657,9]
[334096250,1722766241146,-523.17475814,0.00024657,9]
[334096251,1722766241156,-425.0151373,0.00024657,9]
[334096252,1722766241165,-500.0,0.00024657,9]
[334096253,1722766241174,-500.34837333,0.00024657,9]
[334096254,1722766241183,-500.0,0.00024657,9]
[334096255,1722766241193,-500.0,0.00024657,9]
[334096256,1722766241202,-500.0,0.00024657,9]
[334096257,1722766241211,-501.46284782,0.00024657,9]
[334096258,1722766241221,-376.68057207,0.00024657,9]
[334096259,1722766241230,-500.0,0.00024657,9]
[334096260,1722766241239,-500.0,0.00024657,9]
[334096261,1722766241248,-500.88253542,0.00024657,9]
[334096262,1722766241258,-500.0,0.00024657,9]
[334096263,1722766241268,-500.0,0.00024657,9]
[334096264,1722766241277,-500.0,0.00024657,9]
[334096265,1722766241286,-500.0,0.00024657,9]
[334096266,1722766241295,-500.0,0.00024657,9]
[334096267,1722766241305,-500.0,0.00024657,9]
[334096268,1722766241315,-500.0,0.00024657,9]
[334096269,1722766241324,-208.89022763,0.00024657,9]
[334096270,1722766241334,-500.0,0.00024657,9]
[334096271,1722766241343,-500.0,0.00024657,9]
[334096272,1722766241353,-501.47194413,0.00024657,9]
[334096273,1722766241363,-500.0,0.00024657,9]
[334096274,1722766241372,-500.71442176,0.00024657,9]
[334096275,1722766241382,-500.0,0.00024657,9]
[334096276,1722766241391,-500.0,0.00024657,9]
[334096277,1722766241401,-501.10198595,0.00024657,9]
[334096278,1722766241602,-500.0,0.00024657,9]
[334096279,1722766241637,-500.0,0.00024657,9]
[334096280,1722766241648,-500.0,0.00024657,9]
[334096281,1722766241657,-500.0,0.00024657,9]
[334096282,1722766241669,-500.78776095,0.00024657,9]
[334096283,1722766241680,-500.0,0.00024657,9]
[334096284,1722766241690,-500.0,0.00024657,9]
[334096285,1722766241699,-501.12843934,0.00024657,9]
[334096286,1722766241709,-500.0,0.00024657,9]
[334096287,1722766241719,-245.74903483,0.00024657,9]
[334096288,1722766241728,-649.76148898,0.00024657,9]
[334096289,1722766241738,-614.96034551,0.00024657,9]
[334096290,1722766241748,-500.0,0.00024657,9]
[334096291,1722766241758,-500.0,0.00024657,9]
[334096292,1722766241768,-501.41291192,0.00024657,9]
[334096293,1722766241777,-500.0,0.00024657,9]
[334096294,1722766241787,-500.0,0.00024657,9]
[334096295,1722766241797,-500.0,0.00024657,9]
[334096296,1722766241807,-500.0,0.00024657,9]
[334096297,1722766241817,-500.0,0.00024657,9]
[334096298,1722766241828,-500.55403454,0.00024657,9]
[334096299,1722766241838,-325.6680336,0.00024657,2]
[334096300,1722766241848,-536.23243237,0.00024657,9]
[334096301,1722766241860,-500.3527883,0.00024657,9]
[334096302,1722766241869,-500.0,0.00024657,9]
[334096303,1722766241879,-500.40180867,0.00024657,9]
[334096304,1722766241888,-500.0,0.00024657,9]
[334096305,1722766241899,-500.0,0.00024657,9]
[334096306,1722766241908,-500.0,0.00024657,9]
[334096307,1722766241918,-500.0,0.00024657,9]
[334096308,1722766241928,-500.0,0.00024657,9]
[334096309,1722766241938,-500.0,0.00024657,9]
[334096310,1722766241947,-500.0,0.00024657,9]
[334096311,1722766241957,-500.0,0.00024657,9]
[334096312,1722766241967,-500.99770228,0.00024657,9]
[334096313,1722766241976,-500.44310833,0.00024657,9]
[334096314,1722766241986,-500.0,0.00024657,9]
[334096315,1722766241996,-500.35700504,0.00024657,9]
[334096316,1722766242004,-500.0,0.00024657,9]
[334096317,1722766242014,-501.14842245,0.00024657,9]
[334096318,1722766242024,-500.0,0.00024657,9]
[334096319,1722766242034,-500.99059061,0.00024657,9]
[334096320,1722766242043,-500.18554225,0.00024657,9]
[334096321,1722766242054,-500.0,0.00024657,9]
[334096322,1722766242064,-500.81610319,0.00024657,9]
[334096323,1722766242073,-500.0,0.00024657,9]
[334096324,1722766242083,-501.15518875,0.00024657,9]
[334096325,1722766242093,-501.38521648,0.00024657,9]
[334096326,1722766242104,-500.0,0.00024657,9]
[334096327,1722766242114,-500.50145815,0.00024657,9]
[334096328,1722766242124,-500.0,0.00024657,9]
[334096329,1722766242135,-500.84177115,0.00024657,9]
[334096330,1722766242145,-500.0,0.00024657,9]
[334096331,1722766242154,-500.0,0.00024657,9]
[334096332,1722766242164,-501.40931622,0.00024657,9]
[334096333,1722766242173,-500.0,0.00024657,9]
[334096334,1722766242183,-500.49911024,0.00024657,9]
[334096335,1722766242193,-500.0,0.00024657,9]
[334096336,1722766242202,-500.37333328,0.00024657,9]
[334096337,1722766242212,-500.0,0.00024657,9]
[334096338,1722766242221,-392.33830547,0.00024657,9]
[334096339,1722766242231,-500.0,0.00024657,9]
[334096340,1722766242242,-500.0,0.00024657,9]
[334096341,1722766242252,-500.0,0.00024657,9]
[334096342,1722766242263,-500.0,0.00024657,9]
[334096343,1722766242272,-500.70872921,0.00024657,9]
[334096344,1722766242282,-500.0,0.00024657,9]
[334096345,1722766242292,-500.52612406,0.00024657,9]
[334096346,1722766242302,-500.0,0.00024657,9]
[334096347,1722766242311,-500.76273198,0.00024657,9]
[334096348,1722766242321,-500.0,0.00024657,9]
[334096349,1722766242331,-500.0,0.00024657,9]
[334096350,1722766242341,-500.0,0.00024657,9]
[334096351,1722766242351,-500.0,0.00024657,9]
[334096352,1722766242360,-500.49772845,0.00024657,9]
[334096353,1722766242370,-500.0,0.00024657,9]
[334096354,1722766242380,-500.71469113,0.00024657,9]
[334096355,1722766242390,-500.0,0.00024657,9]
[334096356,1722766242400,-226.76481246,0.00024657,9]
[334096357,1722766242410,-500.0,0.00024657,9]
[334096358,1722766242420,-500.83059193,0.00024657,9]
[334096359,1722766242431,-500.0,0.00024657,9]
[334096360,1722766242440,-500.0,0.00024657,9]
[334096361,1722766242450,-165.63803477,0.00024657,9]
[334096362,1722766242460,-500.0,0.00024657,9]
[334096363,1722766242469,-500.47838948,0.00024657,9]
[334096364,1722766242479,-203.11479362,0.00024657,9]
[334096365,1722766242489,-500.0,0.00024657,9]
[334096366,1722766242499,-500.39107028,0.00024657,9]
[334096367,1722766242509,-218.67558886,0.00024657,9]
[334096368,1722766242518,-500.0,0.00024657,9]
[334096369,1722766242528,-500.0,0.00024657,9]
[334096370,1722766242537,-500.0,0.00024657,9]
[334096371,1722766242547,-501.33545068,0.00024657,9]
[334096372,1722766242556,-500.0,0.00024657,9]
[334096373,1722766242565,-500.0,0.00024657,9]
[334096374,1722766242575,-500.81722558,0.00024657,9]
[334096375,1722766242584,-500.0,0.00024657,9]
[334096376,1722766242594,-189.80643317,0.00024657,9]
[334096377,1722766242605,-500.0,0.00024657,9]
[334096378,1722766242614,-500.0,0.00024657,9]
[334096379,1722766242623,-498.71343191,0.00024657,9]
[334096380,1722766242633,-300.0,0.00024657,9]
[334096381,1722766242642,-300.0,0.00024657,9]
[334096383,1722766242652,-300.0,0.00024657,9]
[334096385,1722766242661,-300.0,0.00024657,9]
[334096387,1722766242675,-301.0438987,0.00024657,9]
[334096389,1722766242684,-500.0,0.00024657,9]
[334096391,1722766242694,-500.0,0.00024657,9]
[334096393,1722766242704,-500.0,0.00024657,9]
[334096395,1722766242714,-501.70594057,0.00024657,9]
[334096397,1722766242724,-498.87562601,0.00024657,9]
[334096399,1722766242733,-500.0,0.00024657,9]
[334096400,1722766242744,-500.0,0.00024657,9]
[334096401,1722766242752,-500.0,0.00024657,9]
[334096402,1722766242762,-449.33734115,0.00024657,9]
[334096403,1722766242771,-500.0,0.00024657,9]
[334096404,1722766242781,-500.0,0.00024657,9]
[334096405,1722766242790,-501.08492495,0.00024657,9]
[334096406,1722766242799,-563.45072059,0.00024657,9]
[334096407,1722766242809,-500.0,0.00024657,9]
[334096408,1722766242818,-500.0,0.00024657,9]
[334096409,1722766242828,-501.55690446,0.00024657,9]
[334096410,1722766242837,-500.0,0.00024657,9]
[334096411,1722766242846,-500.0,0.00024657,9]
[334096412,1722766242856,-500.0,0.00024657,9]
[334096413,1722766242866,-500.0,0.00024657,9]
[334096414,1722766242875,-500.0,0.00024657,9]
[334096415,1722766242885,-500.0,0.00024657,9]
[334096416,1722766242895,-500.0,0.00024657,9]
[334096417,1722766242904,-644.02161948,0.00024657,9]
[334096418,1722766242914,-500.0,0.00024657,9]
[334096419,1722766242923,-425.71294937,0.00024657,9]
[334096420,1722766242933,-500.0,0.00024657,9]
[334096421,1722766242943,-500.0,0.00024657,9]
[334096422,1722766242953,-500.0,0.00024657,9]
[334096423,1722766242963,-500.0,0.00024657,9]
[334096424,1722766242972,-500.0,0.00024657,9]
[334096425,1722766242981,-500.0,0.00024657,9]
[334096426,1722766242990,-500.0,0.00024657,9]
[334096427,1722766243000,-641.42354199,0.00024657,9]
[334096428,1722766243009,-500.0,0.00024657,9]
[334096429,1722766243018,-500.0,0.00024657,9]
[334096430,1722766243028,-500.0,0.00024657,9]
[334096431,1722766243038,-500.0,0.00024657,9]
[334096432,1722766243047,-500.0,0.00024657,9]
[334096433,1722766243057,-498.9093693,0.00024657,9]
[334096434,1722766243066,-500.0,0.00024657,9]
[334096435,1722766243075,-500.0,0.00024657,9]
[334096436,1722766243084,-500.0,0.00024657,9]
[334096437,1722766243094,-500.0,0.00024657,9]
[334096438,1722766243103,-501.69839642,0.00024657,9]
[334096439,1722766243113,-500.0,0.00024657,9]
[334096440,1722766243122,-500.0,0.00024657,9]
[334096441,1722766243131,-500.0,0.00024657,9]
[334096442,1722766243140,-500.0,0.00024657,9]
[334096443,1722766243150,-500.0,0.00024657,9]
[334096444,1722766243159,-500.0,0.00024657,9]
[334096445,1722766243168,-500.0,0.00024657,9]
[334096446,1722766243177,-501.37351911,0.00024657,9]
[334096447,1722766243187,-556.88180726,0.00024657,9]
[334096448,1722766243196,-500.0,0.00024657,9]
[334096449,1722766243206,-500.0,0.00024657,9]
[334096450,1722766243215,-576.18869119,0.00024657,9]
[334096451,1722766243225,-500.0,0.00024657,9]
[334096452,1722766243234,-500.0,0.00024657,9]
[334096453,1722766243244,-500.0,0.00024657,9]
[334096454,1722766243253,-513.17880653,0.00024657,9]
[334096455,1722766243263,-500.0,0.00024657,9]
[334096456,1722766243273,-501.16598722,0.00024657,9]
[334096457,1722766243283,-500.0,0.00024657,9]
[334096458,1722766243292,-500.0,0.00024657,9]
[334096459,1722766243302,-229.70378421,0.00024657,9]
[334096460,1722766243311,-500.0,0.00024657,9]
[334096461,1722766243321,-500.0,0.00024657,9]
[334096462,1722766243331,-500.0,0.00024657,9]
[334096463,1722766243340,-500.0,0.00024657,9]
[334096464,1722766243350,-500.41563983,0.00024657,9]
[334096465,1722766243360,-500.0,0.00024657,9]
[334096466,1722766243370,-330.35553524,0.00024657,9]
[334096467,1722766243380,-460.07281904,0.00024657,2]
[334096468,1722766243389,-500.0,0.00024657,9]
[334096469,1722766243399,-500.0,0.00024657,9]
[334096470,1722766243409,-500.0,0.00024657,9]
[334096471,1722766243419,-500.0,0.00024657,9]
[334096472,1722766243430,-500.0,0.00024657,9]
[334096473,1722766243439,-500.0,0.00024657,9]
[334096474,1722766243449,-500.79921687,0.00024657,9]
[334096475,1722766243460,-547.03823334,0.00024657,9]
[334096476,1722766243470,-360.84523819,0.00024657,9]
[334096477,1722766243480,-500.0,0.00024657,9]
[334096478,1722766243490,-500.0,0.00024657,9]
[334096479,1722766243499,-500.0,0.00024657,9]
[334096480,1722766243509,-500.0,0.00024657,9]
[334096481,1722766243519,-500.0,0.00024657,9]
[334096482,1722766243528,-500.0,0.00024657,9]
[334096483,1722766243538,-426.30544851,0.00024657,9]
[334096484,1722766244322,-216.24293933,0.00024657,9]
[334096485,1722766244332,-163.25435547,0.00024657,9]
[334096486,1722766244344,-302.89116975,0.00024657,9]
[334096487,1722766244354,-206.1139302,0.00024657,9]
[334096488,1722766244363,-500.0,0.00024657,9]
[334096489,1722766244372,-500.0,0.00024657,9]
[334096490,1722766244381,-500.0,0.00024657,9]
[334096491,1722766244390,-500.0,0.00024657,9]
[334096492,1722766244400,-500.0,0.00024657,9]
[334096493,1722766244409,-112.60601418,0.00024657,9]
[334096494,1722766244425,-387.39398582,0.00024657,9]
[334096495,1722766244435,-502.83298438,0.00024657,9]
[334096496,1722766244444,-430.54778749,0.00024657,9]
[334096497,1722766244453,-155.76444597,0.00024657,9]
[334096498,1722766244463,-500.0,0.00024657,9]
[334096499,1722766244472,-500.0,0.00024657,9]
[334096500,1722766244481,-500.0,0.00024657,9]
[334096501,1722766244490,-500.0,0.00024657,9]
[334096502,1722766244500,-500.0,0.00024657,9]
[334096503,1722766244510,-500.39384897,0.00024657,9]
[334096504,1722766244519,-500.0,0.00024657,9]
[334096505,1722766244529,-500.0,0.00024657,9]
[334096506,1722766244538,-563.57820302,0.00024657,9]
[334096507,1722766244547,-500.65691301,0.00024657,9]
[334096508,1722766244556,-500.0,0.00024657,9]
[334096509,1722766244565,-168.54286905,0.00024657,9]
[334096510,1722766244574,-500.0,0.00024657,9]
[334096511,1722766244583,-500.0,0.00024657,9]
[334096512,1722766244593,-501.11642202,0.00024657,9]
[334096513,1722766244602,-457.84579107,0.00024657,9]
[334096514,1722766244614,-500.0,0.00024657,9]
[334096515,1722766244624,-500.0,0.00024657,9]
[334096516,1722766244633,-500.48718794,0.00024657,9]
[334096517,1722766244642,-585.94826721,0.00024657,9]
[334096518,1722766244651,-206.28561599,0.00024657,9]
[334096519,1722766244661,-500.0,0.00024657,9]
[334096520,1722766244672,-500.0,0.00024657,9]
[334096521,1722766244682,-500.0,0.00024657,9]
[334096522,1722766244691,-500.93122022,0.00024657,9]
[334096523,1722766244700,-500.0,0.00024657,9]
[334096524,1722766244711,-500.0,0.00024657,9]
[334096525,1722766244720,-500.0,0.00024657,9]
[334096526,1722766244729,-500.0,0.00024657,9]
[334096527,1722766244739,-501.09195977,0.00024657,9]
[334096528,1722766244751,-500.0,0.00024657,9]
[334096529,1722766244761,-500.0,0.00024657,9]
[334096530,1722766244771,-193.86327267,0.00024657,9]
[334096531,1722766244780,-500.0,0.00024657,9]
[334096532,1722766244790,-500.0,0.00024657,9]
[334096533,1722766244800,-500.0,0.00024657,9]
[334096534,1722766244809,-500.0,0.00024657,9]
[334096535,1722766244818,-500.0,0.00024657,9]
[334096536,1722766244828,-527.80031633,0.00024657,9]
[334096537,1722766244838,-560.79851152,0.00024657,9]
[334096538,1722766244847,-500.0,0.00024657,9]
[334096539,1722766244858,-500.0,0.00024657,9]
[334096540,1722766244867,-500.0,0.00024657,9]
[334096541,1722766244877,-510.66187838,0.00024657,9]
[334096542,1722766244887,-494.23223692,0.00024657,9]
[334096543,1722766244896,-500.0,0.00024657,9]
[334096544,1722766244905,-500.0,0.00024657,9]
[334096545,1722766244915,-500.0,0.00024657,9]
[334096546,1722766244924,-525.3563259,0.00024657,9]
[334096547,1722766244933,-500.0,0.00024657,9]
[334096548,1722766244942,-500.602944,0.00024657,9]
[334096549,1722766244952,-500.0,0.00024657,9]
[334096550,1722766244961,-500.0,0.00024657,9]
[334096551,1722766244970,-500.0,0.00024657,9]
[334096552,1722766244980,-500.2720298,0.00024657,9]
[334096553,1722766244990,-500.0,0.00024657,9]
[334096554,1722766245001,-500.0,0.00024657,9]
[334096555,1722766245010,-166.06411778,0.00024657,9]
[334096556,1722766245019,-500.0,0.00024657,9]
[334096557,1722766245029,-500.0,0.00024657,9]
[334096558,1722766245038,-500.0,0.00024657,9]
[334096559,1722766245047,-500.0,0.00024657,9]
[334096560,1722766245056,-500.0,0.00024657,9]
[334096561,1722766245065,-79.54886478,0.00024657,9]
[334096562,1722766245109,-420.45113522,0.00024657,9]
[334096563,1722766245119,-500.2906779,0.00024657,9]
[334096564,1722766245128,-500.0,0.00024657,9]
[334096565,1722766245138,-389.47660014,0.00024657,9]
[334096566,1722766245147,-340.55587679,0.00024657,9]
[334096567,1722766245156,-500.0,0.00024657,9]
[334096568,1722766245166,-342.31099015,0.00024657,9]
[334096569,1722766245179,-158.12302811,0.00024657,9]
[334096570,1722766245188,-500.0,0.00024657,9]
[334096571,1722766245197,-500.0,0.00024657,9]
[334096572,1722766245206,-500.0,0.00024657,9]
[334096573,1722766245215,-263.82987889,0.00024657,9]
[334096574,1722766245238,-236.17012111,0.00024657,9]
[334096575,1722766245247,-278.92968789,0.00024657,9]
[334096576,1722766245257,-501.53139759,0.00024657,9]
[334096577,1722766245266,-500.0,0.00024657,9]
[334096578,1722766245275,-500.0,0.00024657,9]
[334096579,1722766245285,-500.0,0.00024657,9]
[334096580,1722766245294,-500.0,0.00024657,9]
[334096581,1722766245304,-500.0,0.00024657,9]
[334096582,1722766245313,-500.0,0.00024657,9]
[334096583,1722766245323,-500.0,0.00024657,9]
[334096584,1722766245332,-500.0,0.00024657,9]
[334096585,1722766245341,-224.4995496,0.00024657,9]
[334096586,1722766245362,-275.5004504,0.00024657,9]
[334096587,1722766245371,-500.0,0.00024657,9]
[334096588,1722766245381,-645.22290789,0.00024657,9]
[334096589,1722766245390,-500.0,0.00024657,9]
[334096590,1722766245399,-500.0,0.00024657,9]
[334096591,1722766245409,-500.0,0.00024657,9]
[334096592,1722766245419,-513.95800782,0.00024657,9]
[334096593,1722766245429,-500.0,0.00024657,9]
[334096594,1722766245439,-500.0,0.00024657,9]
[334096595,1722766245448,-500.0,0.00024657,9]
[334096596,1722766245458,-500.0,0.00024657,9]
[334096597,1722766245467,-500.0,0.00024657,9]
[334096598,1722766245476,-500.0,0.00024657,9]
[334096599,1722766245485,-500.0,0.00024657,9]
[334096600,1722766245495,-500.50010588,0.00024657,9]
[334096601,1722766245504,-500.0,0.00024657,9]
[334096602,1722766245514,-633.12054118,0.00024657,9]
[334096603,1722766245524,-500.0,0.00024657,9]
[334096604,1722766245534,-500.0,0.00024657,9]
[334096606,1722766245543,-500.0,0.00024657,9]
[334096607,1722766245553,-501.20356305,0.00024657,9]
[334096609,1722766245562,-500.0,0.00024657,9]
[334096611,1722766245572,-500.90012672,0.00024657,9]
[334096613,1722766245582,-500.0,0.00024657,9]
[334096614,1722766245592,-640.6627502,0.00024657,9]
[334096615,1722766245602,-500.0,0.00024657,9]
[334096616,1722766245614,-500.0,0.00024657,9]